bitfinex/quotes_SOLUSD_20241107
["timestamp","ask_amount","ask_price","bid_price","bid_amount"]
[1730983818239,12.45086574,187.11,187.04,0.5732619]
[1730983818448,12.45086574,187.1,187.04,13.02412764]
[1730983818838,12.45086574,187.09,187.04,0.5732619]
[1730983819040,12.45086574,187.11,187.05,12.45086574]
[1730983819352,12.57635574,187.12,187.06,12.45086574]
[1730983819555,12.45086574,187.11,187.05,12.45086574]
[1730983820662,0.12549,187.1,187.05,12.45086574]
[1730983820846,0.12549,187.1,187.04,13.02412764]
[1730983821253,12.57635574,187.1,187.04,13.02412764]
[1730983821562,0.12549,187.1,187.04,13.02412764]
[1730983822156,12.57635574,187.1,187.04,13.02412764]
[1730983822531,12.45086574,187.09,187.04,0.5732619]
[1730983822732,17.92115574,187.1,187.04,13.02412764]
[1730983822960,12.45086574,187.09,187.04,0.5732619]
[1730983824163,5.47029,187.1,187.04,13.02412764]
[1730983824164,12.57635574,187.1,187.04,13.02412764]
[1730983824335,17.79526574,187.12,187.06,12.45086574]
[1730983824538,12.57635574,187.11,187.05,12.45086574]
[1730983824859,12.45086574,187.14,187.08,12.45086574]
[1730983825364,12.45086574,187.12,187.06,12.45086574]
[1730983825746,0.12549,187.11,187.06,12.45086574]
[1730983826245,0.12549,187.16,187.07,12.45086574]
[1730983826459,12.45086574,187.14,187.08,12.45086574]
[1730983826963,0.12549,187.13,187.08,12.45086574]
[1730983827162,12.45086574,187.14,187.08,12.45086574]
[1730983827340,12.45086574,187.15,187.09,12.45086574]
[1730983827543,12.45086574,187.16,187.1,12.45086574]
[1730983827737,12.57635574,187.15,187.09,12.45086574]
[1730983830045,12.45086574,187.16,187.1,12.45086574]
[1730983830443,12.45086574,187.18,187.12,12.45086574]
[1730983830743,12.57635574,187.17,187.11,12.45086574]
[1730983830949,12.57635574,187.17,187.1,12.45086574]
[1730983831662,12.57635574,187.15,187.09,12.45086574]
[1730983832367,0.12549,187.15,187.1,12.45086574]
[1730983832563,6.25820775,187.25,187.14,12.45086574]
[1730983832768,12.45086574,187.21,187.14,12.45086574]
[1730983832971,12.45086574,187.19,187.12,28.41406574]
[1730983833347,12.45086574,187.19,187.13,12.45086574]
[1730983833650,12.45086574,187.2,187.13,12.45086574]
[1730983833856,0.12549,187.19,187.14,12.45086574]
[1730983835162,0.12549,187.2,187.16,12.45086574]
[1730983835762,0.12549,187.22,187.16,12.45086574]
[1730983836162,12.45086574,187.23,187.17,12.45086574]
[1730983836676,12.45086574,187.25,187.18,12.45086574]
[1730983836854,0.12549,187.24,187.18,12.45086574]
[1730983837240,12.45086574,187.25,187.18,12.45086574]
[1730983838253,0.12549,187.24,187.18,12.45086574]
[1730983838770,12.45086574,187.19,187.13,12.45086574]
[1730983839364,0.12549,187.19,187.13,12.45086574]
[1730983840076,12.45086574,187.21,187.15,12.45086574]
[1730983840268,12.45086574,187.23,187.17,12.45086574]
[1730983840452,12.45086574,187.24,187.18,12.45086574]
[1730983840862,12.57635574,187.23,187.17,12.45086574]
[1730983841066,0.12549,187.23,187.18,12.45086574]
[1730983841266,12.45086574,187.25,187.19,12.45086574]
[1730983841756,0.12549,187.25,187.19,12.45086574]
[1730983843056,0.12549,187.25,187.2,12.45086574]
[1730983843553,21.9576,187.29,187.18,12.45086574]
[1730983843554,12.57635574,187.24,187.18,12.45086574]
[1730983844569,0.12549,187.24,187.19,12.45086574]
[1730983845581,0.12549,187.25,187.19,12.45086574]
[1730983845886,0.12549,187.25,187.13,23.776884]
[1730983845887,0.12549,187.25,187.2,12.45086574]
[1730983846381,12.45086574,187.28,187.22,12.45086574]
[1730983846562,0.12549,187.26,187.21,12.45086574]
[1730983846763,12.45086574,187.26,187.19,12.45086574]
[1730983847168,12.45086574,187.26,187.2,12.45086574]
[1730983847378,0.12549,187.27,187.21,12.45086574]
[1730983849394,0.12549,187.26,187.21,12.45086574]
[1730983850382,0.12549,187.27,187.22,12.45086574]
[1730983851078,17.13951167,187.34,187.14,22.6876]
[1730983851079,12.45086574,187.29,187.23,28.75736574]
[1730983851381,12.45086574,187.31,187.24,12.45086574]
[1730983851765,0.12549,187.3,187.24,12.45086574]
[1730983852770,12.57635574,187.29,187.23,16.3065]
[1730983853483,12.57635574,187.29,187.23,28.75736574]
[1730983853786,12.45086574,187.31,187.25,12.45086574]
[1730983854174,0.12549,187.3,187.25,12.45086574]
[1730983854983,12.45086574,187.32,187.26,12.45086574]
[1730983855167,12.45086574,187.33,187.26,12.45086574]
[1730983855483,22.6854,187.39,187.23,16.3065]
[1730983855484,12.45086574,187.36,187.29,12.45086574]
[1730983855676,12.45086574,187.36,187.3,12.45086574]
[1730983856968,12.45086574,187.35,187.29,12.45086574]
[1730983858495,12.45086574,187.36,187.29,12.45086574]
[1730983858788,12.45086574,187.36,187.3,12.45086574]
[1730983859889,12.45086574,187.36,187.29,12.45086574]
[1730983860186,12.45086574,187.36,187.3,12.45086574]
[1730983860487,0.12549,187.36,187.3,12.45086574]
[1730983860688,12.57635574,187.36,187.3,12.45086574]
[1730983861291,12.57635574,187.36,187.29,12.45086574]
[1730983861786,12.57635574,187.36,187.3,12.45086574]
[1730983862688,0.12549,187.36,187.3,12.45086574]
[1730983862871,12.57635574,187.36,187.3,12.45086574]
[1730983863795,12.45086574,187.35,187.29,12.45086574]
[1730983864291,12.45086574,187.36,187.3,12.45086574]
[1730983865292,7.95691727,187.36,187.3,7.95691727]
[1730983866401,7.95691727,187.34,187.27,7.95691727]
[1730983866894,7.95691727,187.32,187.26,7.95691727]
[1730983868288,7.95691727,187.31,187.25,7.95691727]
[1730983868594,7.95691727,187.31,187.23,16.3065]
[1730983868595,7.95691727,187.32,187.26,7.95691727]
[1730983868770,7.95691727,187.31,187.23,16.3065]
[1730983868977,7.95691727,187.3,187.23,24.26341727]
[1730983869182,7.95691727,187.3,187.24,7.95691727]
[1730983869793,7.95691727,187.3,187.23,16.3065]
[1730983869985,7.95691727,187.3,187.24,7.95691727]
[1730983870188,7.95691727,187.31,187.24,7.95691727]
[1730983870503,0.12549,187.34,187.26,7.95691727]
[1730983870793,16.3647,187.39,187.29,7.95691727]
[1730983870794,7.95691727,187.35,187.29,7.95691727]
[1730983871696,0.12549,187.34,187.29,7.95691727]
[1730983872197,0.12549,187.35,187.29,7.95691727]
[1730983873282,0.12549,187.38,187.29,12.43345293]
[1730983873483,0.12549,187.35,187.29,12.43345293]
[1730983873690,12.55894293,187.35,187.28,12.43345293]
[1730983874078,12.43345293,187.34,187.28,12.43345293]
[1730983874304,12.43345293,187.33,187.26,12.43345293]
[1730983874798,12.43345293,187.34,187.27,12.43345293]
[1730983875702,12.43345293,187.33,187.27,12.43345293]
[1730983875994,12.43345293,187.31,187.25,12.43345293]
[1730983876197,12.43345293,187.31,187.24,12.43345293]
[1730983876618,12.43345293,187.31,187.25,12.43345293]
[1730983876904,12.43345293,187.32,187.26,12.43345293]
[1730983878907,12.43345293,187.35,187.28,12.43345293]
[1730983879083,0.12549,187.34,187.28,12.43345293]
[1730983879283,0.12549,187.34,187.29,12.43345293]
[1730983880401,12.43345293,187.34,187.27,12.43345293]
[1730983880602,12.43345293,187.33,187.26,12.43345293]
[1730983881098,12.43345293,187.33,187.27,12.43345293]
[1730983881405,0.12549,187.34,187.28,12.43345293]
[1730983881698,12.55894293,187.34,187.28,12.43345293]
[1730983882001,12.43345293,187.35,187.28,12.43345293]
[1730983882194,0.12549,187.34,187.28,12.43345293]
[1730983882391,12.43345293,187.37,187.3,12.43345293]
[1730983882592,12.43345293,187.37,187.31,12.43345293]
[1730983882894,0.12549,187.36,187.3,12.43345293]
[1730983883593,0.12549,187.36,187.31,12.43345293]
[1730983884595,12.43345293,187.38,187.32,12.43345293]
[1730983885192,12.43345293,187.38,187.31,12.43345293]
[1730983885401,12.43345293,187.37,187.3,12.43345293]
[1730983885587,21.37510775,187.44,187.29,12.43345293]
[1730983885588,12.43345293,187.36,187.29,12.43345293]
[1730983885995,12.43345293,187.35,187.29,12.43345293]
[1730983886507,15.1169,187.44,187.34,12.43345293]
[1730983886801,12.55894293,187.43,187.37,12.43345293]
[1730983887111,12.43345293,187.42,187.35,12.43345293]
[1730983887604,12.43345293,187.42,187.36,12.43345293]
[1730983888215,0.12549,187.39,187.33,12.43345293]
[1730983889603,12.43345293,187.39,187.32,12.43345293]
[1730983890819,12.43345293,187.39,187.33,12.43345293]
[1730983892230,0.12549,187.39,187.34,12.43345293]
[1730983892512,12.43345293,187.42,187.35,12.43345293]
[1730983892715,12.43345293,187.42,187.36,12.43345293]
[1730983893718,12.43345293,187.43,187.36,12.43345293]
[1730983894414,12.43345293,187.43,187.37,12.43345293]
[1730983895693,12.43345293,187.45,187.39,12.43345293]
[1730983895896,12.43345293,187.46,187.39,12.43345293]
[1730983896096,0.12549,187.45,187.39,12.43345293]
[1730983896804,12.43345293,187.47,187.41,12.43345293]
[1730983896999,12.43345293,187.48,187.41,12.43345293]
[1730983897210,12.43345293,187.48,187.42,12.43345293]
[1730983897391,27.844452,187.53,187.42,12.43345293]
[1730983897392,12.43345293,187.49,187.42,12.43345293]
[1730983897592,0.12549,187.49,187.43,12.43345293]
[1730983897791,12.55894293,187.49,187.43,12.43345293]
[1730983899041,12.43345293,187.48,187.42,12.43345293]
[1730983899607,12.43345293,187.49,187.43,12.43345293]
[1730983899811,12.43345293,187.51,187.45,12.43345293]
[1730983900009,0.12549,187.5,187.45,12.43345293]
[1730983900205,12.43345293,187.52,187.45,12.43345293]
[1730983900406,12.43345293,187.52,187.46,12.43345293]
[1730983900798,0.12549,187.51,187.46,12.43345293]
[1730983901519,12.43345293,187.53,187.47,12.43345293]
[1730983901696,12.43345293,187.52,187.46,12.43345293]
[1730983902094,12.55894293,187.54,187.47,12.43345293]
[1730983902394,12.43345293,187.54,187.47,12.43345293]
[1730983902600,0.12549,187.53,187.47,12.43345293]
[1730983902814,12.55894293,187.53,187.47,12.43345293]
[1730983903397,12.43345293,187.5,187.43,12.43345293]
[1730983903816,12.43345293,187.51,187.45,12.43345293]
[1730983904015,0.12549,187.51,187.45,12.43345293]
[1730983905418,12.43345293,187.52,187.46,12.43345293]
[1730983905625,12.43345293,187.53,187.47,12.43345293]
[1730983905826,12.43345293,187.54,187.47,12.43345293]
[1730983906003,12.43345293,187.54,187.48,12.43345293]
[1730983906535,12.43345293,187.56,187.49,12.43345293]
[1730983908807,12.43345293,187.55,187.49,12.43345293]
[1730983909407,12.43345293,187.56,187.49,12.43345293]
[1730983909594,12.43345293,187.56,187.5,12.43345293]
[1730983909998,12.43345293,187.56,187.49,12.43345293]
[1730983911319,7.9401464,187.56,187.49,7.9401464]
[1730983912426,7.9401464,187.55,187.49,7.9401464]
[1730983913303,7.9401464,187.54,187.47,7.9401464]
[1730983913509,7.9401464,187.53,187.47,7.9401464]
[1730983914029,7.9401464,187.54,187.47,7.9401464]
[1730983915130,7.9401464,187.55,187.48,7.9401464]
[1730983915506,7.9401464,187.54,187.48,7.9401464]
[1730983915812,7.9401464,187.55,187.48,7.9401464]
[1730983917307,7.9401464,187.55,187.49,7.9401464]
[1730983920630,6.401,187.6,187.5,7.9401464]
[1730983920815,7.9401464,187.58,187.51,7.9401464]
[1730983921133,7.9401464,187.57,187.51,7.9401464]
[1730983922016,7.9401464,187.57,187.5,7.9401464]
[1730983922209,7.9401464,187.54,187.48,7.9401464]
[1730983923028,0.12549,187.58,187.48,7.9401464]
[1730983923029,7.9401464,187.55,187.48,7.9401464]
[1730983923742,7.9401464,187.53,187.47,7.9401464]
[1730983923920,7.9401464,187.53,187.46,22.9661]
[1730983924118,7.9401464,187.52,187.46,24.5688464]
[1730983924311,7.9401464,187.52,187.41,102.3436]
[1730983924312,0.12549,187.51,187.41,117.7176]
[1730983924515,0.22549,187.58,187.44,7.9401464]
[1730983924516,7.9401464,187.5,187.44,7.9401464]
[1730983926642,7.9401464,187.51,187.45,7.9401464]
[1730983927121,7.9401464,187.5,187.44,7.9401464]
[1730983927736,7.9401464,187.51,187.45,7.9401464]
[1730983929741,23.876884,187.59,187.41,21.4176]
[1730983929742,8.0656364,187.5,187.43,7.9401464]
[1730983929933,7.9401464,187.49,187.43,7.9401464]
[1730983930641,7.9401464,187.5,187.43,7.9401464]
[1730983931339,7.9401464,187.49,187.43,7.9401464]
[1730983931836,0.12549,187.53,187.43,7.9401464]
[1730983931837,7.9401464,187.5,187.43,7.9401464]
[1730983932239,7.9401464,187.5,187.44,7.9401464]
[1730983932620,0.12549,187.5,187.45,7.9401464]
[1730983934325,7.9401464,187.5,187.44,7.9401464]
[1730983935027,15.5211,187.54,187.41,21.4176]
[1730983935028,7.9401464,187.49,187.41,21.4176]
[1730983935325,7.9401464,187.5,187.44,7.9401464]
[1730983936215,7.9401464,187.48,187.42,7.9401464]
[1730983937840,7.9401464,187.48,187.41,23.3141464]
[1730983938148,8.0656364,187.47,187.41,7.9401464]
[1730983938442,7.9401464,187.46,187.4,7.9401464]
[1730983939021,0.12549,187.46,187.41,7.9401464]
[1730983940220,0.12549,187.46,187.37,22.4503]
[1730983940221,7.9401464,187.46,187.4,7.9401464]
[1730983940638,7.9401464,187.46,187.39,7.9401464]
[1730983942043,0.12549,187.45,187.39,7.9401464]
[1730983942233,7.9401464,187.47,187.41,7.9401464]
[1730983942547,7.9401464,187.5,187.44,7.9401464]
[1730983943027,7.9401464,187.52,187.45,7.9401464]
[1730983943229,7.9401464,187.52,187.46,7.9401464]
[1730983943644,8.0656364,187.51,187.44,7.9401464]
[1730983944832,7.9401464,187.5,187.43,7.9401464]
[1730983945155,7.9401464,187.47,187.41,7.9401464]
[1730983945539,7.9401464,187.48,187.42,7.9401464]
[1730983945742,7.9401464,187.48,187.41,7.9401464]
[1730983946673,7.9401464,187.48,187.42,7.9401464]
[1730983946839,7.9401464,187.49,187.42,7.9401464]
[1730983948044,7.9401464,187.46,187.4,7.9401464]
[1730983948249,7.9401464,187.47,187.41,7.9401464]
[1730983949954,0.12549,187.47,187.41,7.9401464]
[1730983952838,23.776884,187.53,187.43,7.9401464]
[1730983953035,7.9401464,187.51,187.44,7.9401464]
[1730983953549,7.9401464,187.5,187.39,20.0]
[1730983953750,0.12549,187.49,187.43,7.9401464]
[1730983955046,21.9899,187.54,187.44,7.9401464]
[1730983955245,7.9401464,187.51,187.44,7.9401464]
[1730983955766,21.9899,187.54,187.44,7.9401464]
[1730983955767,0.12549,187.53,187.44,7.9401464]
[1730983955949,7.9401464,187.5,187.43,7.9401464]
[1730983956142,7.9401464,187.51,187.44,7.9401464]
[1730983956858,7.9401464,187.5,187.43,7.9401464]
[1730983960949,7.9401464,187.5,187.44,7.9401464]
[1730983961136,0.12549,187.51,187.45,7.9401464]
[1730983962232,7.9401464,187.54,187.48,7.9401464]
[1730983962740,0.12549,187.53,187.48,7.9401464]
[1730983963937,7.9401464,187.54,187.48,7.9401464]
[1730983964161,7.9401464,187.56,187.5,7.9401464]
[1730983964370,16.6215,187.59,187.51,7.9401464]
[1730983964547,0.12549,187.57,187.51,7.9401464]
[1730983964865,8.0656364,187.57,187.51,7.9401464]
[1730983965167,7.9401464,187.58,187.52,7.9401464]
[1730983965545,0.12549,187.57,187.52,7.9401464]
[1730983965757,21.328434,187.62,187.52,7.9401464]
[1730983965938,7.9401464,187.59,187.53,7.9401464]
[1730983967070,7.9401464,187.59,187.52,7.9401464]
[1730983967763,7.9401464,187.58,187.52,7.9401464]
[1730983969767,7.9401464,187.59,187.52,7.9401464]
[1730983969974,7.9401464,187.59,187.53,7.9401464]
[1730983970868,7.9401464,187.58,187.51,7.9401464]
[1730983971173,7.9401464,187.58,187.52,7.9401464]
[1730983971760,7.9401464,187.59,187.53,7.9401464]
[1730983974975,7.9401464,187.6,187.54,7.9401464]
[1730983976854,0.12549,187.6,187.54,7.9401464]
[1730983977257,7.9401464,187.61,187.54,7.9401464]
[1730983977451,7.9401464,187.61,187.55,7.9401464]
[1730983977659,7.9401464,187.59,187.52,7.9401464]
[1730983977860,7.9401464,187.61,187.54,7.9401464]
[1730983978059,7.9401464,187.61,187.55,7.9401464]
[1730983978455,8.0656364,187.62,187.56,7.9401464]
[1730983979577,7.9401464,187.61,187.54,7.9401464]
[1730983979791,7.9401464,187.61,187.55,7.9401464]
[1730983980079,8.0656364,187.62,187.56,7.9401464]
[1730983980482,7.9401464,187.61,187.55,7.9401464]
[1730983982272,7.9401464,187.59,187.52,7.9401464]
[1730983982579,6.3559,187.63,187.51,15.8241]
[1730983982580,0.12549,187.57,187.51,23.7642464]
[1730983982780,0.12549,187.57,187.51,7.9401464]
[1730983983766,0.12549,187.57,187.52,7.9401464]
[1730983984660,0.12549,187.58,187.52,7.9401464]
[1730983985379,0.12549,187.57,187.52,7.9401464]
[1730983987068,0.12549,187.57,187.47,6.4153]
[1730983987069,0.12549,187.57,187.51,7.9401464]
[1730983987470,8.0656364,187.56,187.49,7.9401464]
[1730983987694,7.9401464,187.55,187.49,7.9401464]
[1730983987867,7.9401464,187.55,187.48,7.9401464]
[1730983988678,7.9401464,187.55,187.49,7.9401464]
[1730983989361,0.12549,187.54,187.49,7.9401464]
[1730983989760,8.0656364,187.54,187.48,7.9401464]
[1730983989989,0.12549,187.54,187.48,7.9401464]
[1730983990689,0.12549,187.54,187.49,7.9401464]
[1730983991772,0.12549,187.53,187.48,7.9401464]
[1730983996979,23.902374,187.6,187.52,7.9401464]
[1730983997176,23.902374,187.6,187.46,15.3394]
[1730983997177,8.0656364,187.57,187.51,7.9401464]
[1730983997781,0.12549,187.57,187.52,7.9401464]
[1730983997982,0.12549,187.57,187.51,7.9401464]
[1730983999278,1.30314805,187.6,187.51,7.9401464]
[1730983999600,7.9401464,187.58,187.52,7.9401464]
[1730983999896,0.12549,187.57,187.52,7.9401464]
[1730984000697,0.12549,187.56,187.51,7.9401464]
[1730984001494,0.12549,187.56,187.46,15.3394]
[1730984001495,0.12549,187.56,187.5,7.9401464]
[1730984001715,0.12549,187.53,187.48,7.9401464]
[1730984002880,0.12549,187.54,187.48,7.9401464]
[1730984003602,0.12549,187.54,187.49,7.9401464]
[1730984005286,0.12549,187.54,187.46,15.3394]
[1730984005601,8.0656364,187.53,187.42,26.85086417]
[1730984005788,0.12549,187.51,187.42,26.85086417]
[1730984005988,0.12549,187.51,187.46,7.9401464]
[1730984007201,0.12549,187.51,187.45,7.9401464]
[1730984007423,0.12549,187.51,187.46,7.9401464]
[1730984010601,0.12549,187.5,187.45,7.9401464]
[1730984010809,8.0656364,187.5,187.44,7.9401464]
[1730984011304,8.0656364,187.5,187.45,7.9401464]
[1730984011305,0.12549,187.5,187.45,7.9401464]
[1730984012180,0.12549,187.5,187.42,21.4293]
[1730984012181,0.12549,187.5,187.44,7.9401464]
[1730984013498,0.12549,187.49,187.44,7.9401464]
[1730984014205,0.12549,187.5,187.44,7.9401464]
[1730984014711,0.12549,187.49,187.44,7.9401464]
[1730984015684,7.9401464,187.46,187.37,16.5646]
[1730984015896,7.9401464,187.45,187.39,7.9401464]
[1730984016208,31.7605856,187.5,187.37,16.5646]
[1730984016209,7.9401464,187.47,187.4,7.9401464]
[1730984016398,8.0656364,187.46,187.39,7.9401464]
[1730984016899,8.0656364,187.46,187.4,7.9401464]
[1730984017498,0.12549,187.44,187.38,7.9401464]
[1730984017905,0.12549,187.44,187.39,7.9401464]
[1730984018098,0.12549,187.45,187.4,7.9401464]
[1730984019885,6.2242,187.49,187.4,7.9401464]
[1730984020091,23.776884,187.52,187.43,7.9401464]
[1730984020314,7.9401464,187.5,187.43,7.9401464]
[1730984020705,0.12549,187.49,187.43,7.9401464]
[1730984021409,7.9401464,187.51,187.44,7.9401464]
[1730984021610,7.9401464,187.51,187.45,7.9401464]
[1730984022216,0.12549,187.5,187.45,7.9401464]
[1730984022391,7.9401464,187.51,187.45,7.9401464]
[1730984023010,0.12549,187.45,187.37,24.5047464]
[1730984023313,0.12549,187.45,187.39,7.9401464]
[1730984024312,8.0656364,187.44,187.38,7.9401464]
[1730984024617,0.12549,187.44,187.38,7.9401464]
[1730984028404,0.12549,187.44,187.39,7.9401464]
[1730984029305,0.12549,187.44,187.38,7.9401464]
[1730984031818,0.12549,187.43,187.38,7.9401464]
[1730984033819,7.9401464,187.44,187.38,7.9401464]
[1730984033820,0.12549,187.44,187.38,7.9401464]
[1730984034019,7.9401464,187.43,187.34,15.5568]
[1730984034242,0.12549,187.42,187.37,7.9401464]
[1730984034392,8.0656364,187.42,187.34,15.5568]
[1730984034594,8.0656364,187.39,187.33,7.9401464]
[1730984034812,8.0656364,187.37,187.31,7.9401464]
[1730984035708,0.12549,187.35,187.3,23.5760464]
[1730984036919,7.9401464,187.35,187.3,15.6359]
[1730984037126,0.12549,187.34,187.29,7.9401464]
[1730984037311,0.12549,187.34,187.31,7.9401464]
[1730984037622,0.12549,187.36,187.31,7.9401464]
[1730984040613,0.12549,187.35,187.3,7.9401464]
[1730984041018,8.0656364,187.35,187.29,7.9401464]
[1730984041325,0.12549,187.33,187.27,7.9401464]
[1730984041704,0.12549,187.33,187.29,7.9401464]
[1730984041915,7.9401464,187.35,187.29,7.9401464]
[1730984041916,0.12549,187.34,187.29,7.9401464]
[1730984043012,0.12549,187.35,187.29,7.9401464]
[1730984043931,0.12549,187.35,187.3,7.9401464]
[1730984044723,7.9401464,187.36,187.25,16.2234]
[1730984044724,0.12549,187.36,187.33,7.9401464]
[1730984045106,7.9401464,187.41,187.34,7.9401464]
[1730984045620,146.1,187.49,187.34,7.9401464]
[1730984045621,21.7819,187.48,187.37,7.9401464]
[1730984045827,7.9401464,187.44,187.38,7.9401464]
[1730984046704,21.7819,187.48,187.38,7.9401464]
[1730984046906,7.9401464,187.43,187.37,7.9401464]
[1730984047107,0.12549,187.42,187.37,7.9401464]
[1730984047324,7.9401464,187.43,187.37,7.9401464]
[1730984047919,0.12549,187.41,187.36,7.9401464]
[1730984048629,0.12549,187.4,187.34,24.2888464]
[1730984049512,0.12549,187.4,187.35,7.9401464]
[1730984049920,0.12549,187.41,187.36,7.9401464]
[1730984050310,0.12549,187.41,187.37,7.9401464]
[1730984050509,0.12549,187.42,187.34,16.3487]
[1730984050839,0.12549,187.42,187.37,7.9401464]
[1730984051322,7.9401464,187.44,187.38,7.9401464]
[1730984051523,21.7819,187.48,187.41,7.9401464]
[1730984051738,7.9401464,187.49,187.43,7.9401464]
[1730984052941,0.12549,187.48,187.43,7.9401464]
[1730984053143,0.12549,187.48,187.44,7.9401464]
[1730984053434,0.12549,187.49,187.44,7.9401464]
[1730984053932,7.9401464,187.52,187.46,7.9401464]
[1730984054131,7.9401464,187.53,187.47,7.9401464]
[1730984054535,7.9401464,187.53,187.46,7.9401464]
[1730984054836,0.12549,187.52,187.46,7.9401464]
[1730984056639,0.12549,187.51,187.46,7.9401464]
[1730984057516,0.12549,187.52,187.46,7.9401464]
[1730984057715,0.12549,187.52,187.47,7.9401464]
[1730984058532,0.12549,187.52,187.46,7.9401464]
[1730984058533,0.12549,187.51,187.46,7.9401464]
[1730984059213,0.12549,187.52,187.47,7.9401464]
[1730984059419,7.9401464,187.54,187.48,7.9401464]
[1730984059719,7.9401464,187.57,187.51,7.9401464]
[1730984059924,7.9401464,187.59,187.53,7.9401464]
[1730984060127,7.9401464,187.6,187.54,7.9401464]
[1730984060332,7.9401464,187.61,187.55,7.9401464]
[1730984060538,7.9401464,187.62,187.55,7.9401464]
[1730984060732,7.9401464,187.62,187.56,7.9401464]
[1730984060925,8.0656364,187.61,187.55,7.9401464]
[1730984061337,12.39820393,187.61,187.55,12.39820393]
[1730984062409,12.39820393,187.62,187.55,12.39820393]
[1730984062816,0.12549,187.61,187.55,12.39820393]
[1730984063833,12.39820393,187.61,187.55,12.39820393]
[1730984064623,0.12549,187.61,187.55,12.39820393]
[1730984064823,0.12549,187.61,187.56,12.39820393]
[1730984065629,12.39820393,187.64,187.57,12.39820393]
[1730984065831,19.00080393,187.7,187.59,12.39820393]
[1730984065832,12.39820393,187.65,187.59,12.39820393]
[1730984066135,0.12549,187.65,187.59,12.39820393]
[1730984066343,12.39820393,187.66,187.59,12.39820393]
[1730984066737,0.12549,187.65,187.59,12.39820393]
[1730984067038,12.39820393,187.64,187.58,12.39820393]
[1730984069821,0.5732619,187.69,187.57,15.2671]
[1730984069822,12.39820393,187.61,187.57,15.2671]
[1730984070229,12.39820393,187.62,187.57,15.2671]
[1730984071331,12.39820393,187.63,187.57,27.66530393]
[1730984072642,12.39820393,187.64,187.58,12.39820393]
[1730984075633,12.39820393,187.63,187.57,27.66530393]
[1730984075829,12.39820393,187.62,187.57,15.2671]
[1730984077547,12.39820393,187.63,187.57,27.66530393]
[1730984078431,12.39820393,187.64,187.58,12.39820393]
[1730984078944,12.39820393,187.65,187.59,12.39820393]
[1730984079131,0.5732619,187.69,187.57,15.2671]
[1730984079132,0.5732619,187.69,187.6,12.39820393]
[1730984079330,12.97146583,187.69,187.62,12.39820393]
[1730984079639,12.97146583,187.69,187.63,12.39820393]
[1730984081027,12.97146583,187.69,187.62,12.39820393]
[1730984083328,12.97146583,187.69,187.62,7.92781658]
[1730984083329,7.92781658,187.68,187.62,7.92781658]
[1730984083530,8.50107848,187.69,187.63,7.92781658]
[1730984084633,7.92781658,187.68,187.62,7.92781658]
[1730984089332,0.5732619,187.69,187.58,43.876884]
[1730984089333,7.92781658,187.67,187.58,43.876884]
[1730984089532,7.92781658,187.67,187.61,7.92781658]
[1730984089732,7.92781658,187.67,187.6,7.92781658]
[1730984090234,7.92781658,187.67,187.61,7.92781658]
[1730984090853,7.92781658,187.67,187.6,7.92781658]
[1730984091157,7.92781658,187.67,187.61,7.92781658]
[1730984092949,7.92781658,187.65,187.57,15.2671]
[1730984093133,7.92781658,187.65,187.59,7.92781658]
[1730984094356,7.92781658,187.64,187.59,7.92781658]
[1730984094531,7.92781658,187.65,187.59,7.92781658]
[1730984095638,7.92781658,187.66,187.59,7.92781658]
[1730984096249,7.92781658,187.66,187.6,7.92781658]
[1730984098457,7.92781658,187.66,187.59,7.92781658]
[1730984098653,7.92781658,187.65,187.59,7.92781658]
[1730984099044,7.92781658,187.66,187.59,7.92781658]
[1730984101958,7.92781658,187.65,187.59,7.92781658]
[1730984102264,7.92781658,187.66,187.59,7.92781658]
[1730984104741,8.50107848,187.69,187.62,7.92781658]
[1730984105269,0.5732619,187.69,187.65,7.92781658]
[1730984106964,0.5732619,187.69,187.64,24.20381658]
[1730984111067,0.5732619,187.69,187.66,7.92781658]
[1730984111368,0.5732619,187.69,187.67,7.92781658]
[1730984111568,0.5732619,187.69,187.68,7.92781658]
[1730984112773,0.5732619,187.69,187.68,27.92781658]
[1730984113267,0.5732619,187.69,187.65,23.776884]
[1730984113469,0.5732619,187.69,187.67,7.92781658]
[1730984113649,0.5732619,187.69,187.66,27.92781658]
[1730984113850,0.5732619,187.69,187.67,7.92781658]
[1730984114651,0.5732619,187.69,187.68,7.92781658]
[1730984115463,0.5732619,187.69,187.68,51.70470058]
[1730984123965,0.5732619,187.69,187.68,43.776884]
[1730984124162,0.5732619,187.69,187.68,51.70470058]
[1730984126763,0.5732619,187.69,187.66,7.92781658]
[1730984126973,0.5732619,187.69,187.67,20.0]
[1730984127380,0.5732619,187.69,187.66,7.92781658]
[1730984130182,0.5732619,187.69,187.64,7.92781658]
[1730984130578,0.5732619,187.69,187.6,5.39770472]
[1730984130579,7.92781658,187.68,187.6,5.39770472]
[1730984130767,7.92781658,187.68,187.63,20.0]